fUSD/lending_fUSD_20260326
["ID","MTS","AMOUNT","RATE_DAILY","PERIOD"]
[418913266,1774534239279,-151.0,0.000114,2]
[418913267,1774534239288,-151.0,0.000114,2]
[418913268,1774534239297,-151.0,0.000114,2]
[418913269,1774534239306,-151.0,0.000114,2]
[418913270,1774534239315,-151.0,0.000114,2]
[418913271,1774534239325,-151.0,0.000114,2]
[418913272,1774534239334,-151.0,0.000114,2]
[418913273,1774534239343,-151.0,0.000114,2]
[418913274,1774534239353,-151.0,0.000114,2]
[418913275,1774534239362,-151.0,0.000114,2]
[418913276,1774534239372,-151.0,0.000114,2]
[418913277,1774534239382,-151.0,0.000114,2]
[418913278,1774534239391,-151.0,0.000114,2]
[418913279,1774534239400,-151.0,0.000114,2]
[418913280,1774534239410,-151.0,0.000114,2]
[418913281,1774534239419,-8.51240789,0.00011407,2]
[418913282,1774534239431,-2427.57757464,0.00011407,2]
[418913284,1774534239879,-1634.09468468,0.00011407,2]
[418913285,1774534239890,-1117.08,0.00011407,2]
[418913286,1774534240179,-768.71294345,0.00011407,2]
[418913287,1774534241619,-397.6843517,0.00011407,2]
[418913288,1774534241980,-1493646.33803764,0.00011407,2]
[418913289,1774534241990,-2828.8,0.00011407,2]
[418913290,1774534241999,-2828.8,0.00011407,2]
[418913291,1774534242009,-2828.8,0.00011407,2]
[418913292,1774534242020,-2828.8,0.00011407,2]
[418913293,1774534242030,-2828.8,0.00011407,2]
[418913294,1774534242039,-2828.7,0.00011407,2]
[418913296,1774534242049,-2828.7,0.00011407,2]
[418913298,1774534242058,-2828.7,0.00011407,2]
[418913300,1774534242067,-2828.7,0.00011407,2]
[418913302,1774534242078,-2828.7,0.00011407,2]
[418913304,1774534242086,-500.0,0.00011574,2]
[418913306,1774534242096,-166.66,0.00011656,2]
[418913308,1774534242106,-157.03,0.000118,2]
[418913310,1774534242116,-300.0,0.000118,2]
[418913312,1774534242126,-300.0,0.000118,2]
[418913313,1774534242135,-300.0,0.000118,2]
[418913314,1774534242145,-300.0,0.000118,2]
[418913315,1774534242155,-300.0,0.000118,2]
[418913316,1774534242164,-250.0,0.000118,2]
[418913317,1774534242173,-193.0,0.000118,2]
[418913318,1774534242183,-250.0,0.000118,2]
[418913319,1774534242192,-54710.79942176,0.00011811,2]
[418913320,1774534242202,-500.0,0.00011848,2]
[418913321,1774534242211,-978.96152073,0.00011921,2]
[418913322,1774534242220,-1000.0,0.00011921,2]
[418913323,1774534242230,-420.0,0.00011935,2]
[418913324,1774534242239,-7834.51153493,0.0001194,2]
[418913325,1774534242249,-1600.0,0.00011941,2]
[418913326,1774534242258,-200.0,0.00011948,2]
[418913327,1774534242267,-150.0,0.00012,2]
[418913328,1774534242278,-166.66,0.00012017,2]
[418913329,1774534242287,-255.0,0.00012044,2]
[418913330,1774534242297,-288.36,0.00012055,2]
[418913331,1774534242306,-209.91479855,0.00012067,2]
[418913332,1774534242315,-2351.0,0.00012099,2]
[418913333,1774534242325,-500.0,0.00012122,2]
[418913334,1774534242334,-54710.79942176,0.00012322,2]
[418913336,1774534242344,-6011.0,0.0001235,2]
[418913338,1774534242353,-166.66,0.00012378,2]
[418913340,1774534242362,-308.35748757,0.00012396,2]
[418913341,1774534242372,-507.06187853,0.00012468,2]
[418913342,1774534242381,-200.0,0.00012496,2]
[418913343,1774534242391,-160.0,0.00012522,2]
[418913344,1774534242401,-979.16666667,0.00012523,2]
[418913345,1774534242411,-292.54,0.0001255,2]
[418913346,1774534242420,-7834.51153493,0.000126,2]
[418913347,1774534242429,-500.0,0.00012614,2]
[418913348,1774534242439,-500.0,0.00012614,2]
[418913349,1774534242447,-500.0,0.00012614,2]
[418913350,1774534242457,-500.0,0.00012614,2]
[418913351,1774534242466,-500.0,0.00012614,2]
[418913352,1774534242475,-500.0,0.00012614,2]
[418913353,1774534242484,-500.0,0.00012614,2]
[418913354,1774534242494,-500.0,0.00012614,2]
[418913355,1774534242503,-500.0,0.00012614,2]
[418913361,1774534242727,-500.0,0.00012614,2]
[418913362,1774534242737,-500.0,0.00012614,2]
[418913363,1774534242746,-500.0,0.00012614,2]
[418913364,1774534242755,-500.0,0.00012614,2]
[418913365,1774534242764,-500.0,0.00012614,2]
[418913366,1774534242775,-500.0,0.00012614,2]
[418913367,1774534242784,-500.0,0.00012614,2]
[418913368,1774534242794,-500.0,0.00012614,2]
[418913369,1774534242804,-500.0,0.00012614,2]
[418913370,1774534242814,-500.0,0.00012614,2]
[418913371,1774534242823,-500.0,0.00012614,2]
[418913372,1774534242832,-500.0,0.00012614,2]
[418913373,1774534242842,-519.0,0.00012614,2]
[418913374,1774534242851,-876.0,0.00012614,2]
[418913375,1774534242861,-500.0,0.00012614,2]
[418913376,1774534242870,-500.0,0.00012614,2]
[418913377,1774534242879,-500.0,0.00012614,2]
[418913378,1774534242889,-500.0,0.00012614,2]
[418913379,1774534242898,-500.0,0.00012614,2]
[418913380,1774534242907,-500.0,0.00012614,2]
[418913381,1774534242917,-500.0,0.00012614,2]
[418913382,1774534242926,-500.0,0.00012614,2]
[418913383,1774534242935,-500.0,0.00012614,2]
[418913384,1774534242945,-500.0,0.00012614,2]
[418913385,1774534242954,-500.0,0.00012614,2]
[418913386,1774534242964,-500.0,0.00012614,2]
[418913387,1774534242973,-500.0,0.00012614,2]
[418913388,1774534242982,-500.0,0.00012614,2]
[418913389,1774534242992,-500.0,0.00012614,2]
[418913390,1774534243001,-500.0,0.00012614,2]
[418913391,1774534243010,-500.0,0.00012614,2]
[418913392,1774534243021,-500.0,0.00012614,2]
[418913393,1774534243031,-500.0,0.00012614,2]
[418913394,1774534243042,-500.0,0.00012614,2]
[418913395,1774534243052,-500.0,0.00012614,2]
[418913396,1774534243062,-500.0,0.00012614,2]
[418913397,1774534243071,-500.0,0.00012614,2]
[418913398,1774534243081,-500.0,0.00012614,2]
[418913399,1774534243091,-570.0,0.00012614,2]
[418913400,1774534243100,-166.66,0.00012739,2]
[418913401,1774534243110,-540.63437119,0.00012792,2]
[418913402,1774534243120,-1000.0,0.00012792,2]
[418913403,1774534243130,-150.0,0.00012811,2]
[418913404,1774534243140,-150.0,0.00012811,2]
[418913405,1774534243150,-3516.0,0.00012811,2]
[418913406,1774534243160,-1045.0,0.00012811,2]
[418913407,1774534243169,-621.0,0.00012811,2]
[418913408,1774534243179,-150.0,0.00012811,2]
[418913409,1774534243189,-1262.0,0.00012811,2]
[418913410,1774534243198,-1216.0,0.00012811,2]
[418913411,1774534243208,-924.0,0.00012811,2]
[418913412,1774534243217,-3763.0,0.00012811,2]
[418913413,1774534243227,-2467.0,0.00012811,2]
[418913414,1774534243237,-209.91479855,0.00012833,2]
[418913415,1774534243246,-157.03,0.00012873,2]
[418913416,1774534243256,-379.15,0.00012902,2]
[418913417,1774534243266,-305.66096444,0.00012912,7]
[418913418,1774534243276,-4122.42229245,0.00013,2]
[418913419,1774534243286,-2710.07396103,0.00013,15]
[418913420,1774534243295,-200.0,0.00013044,2]
[418913421,1774534243307,-367.0,0.00013117,2]
[418913422,1774534243317,-476.91868782,0.00013176,2]
[418913423,1774534243327,-433.0,0.00013188,2]
[418913424,1774534243337,-7834.51153493,0.0001326,2]
[418913425,1774534243347,-197.2574,0.000133,2]
[418913426,1774534243356,-3292.0,0.00013309,2]
[418913427,1774534243366,-1600.0,0.00013434,2]
[418913428,1774534243375,-1000.0,0.0001352,2]
[418913429,1774534243385,-160.0,0.00013578,2]
[418913430,1774534243394,-215.707382,0.00013578,2]
[418913431,1774534243403,-271.414765,0.00013578,2]
[418913432,1774534243412,-160.0,0.00013578,2]
[418913433,1774534243422,-232.44995365,0.00013592,2]
[418913434,1774534243431,-209.91479855,0.000136,2]
[418913435,1774534243440,-528.03470926,0.000136,2]
[418913436,1774534243450,-295.92490408,0.00013604,2]
[418913437,1774534243459,-8916.21344991,0.00013604,2]
[418913438,1774534243469,-179038.483475,0.0001362,2]
[418913439,1774534243478,-10287.4470866,0.0001362,2]
[418913440,1774534243488,-230157.3125615,0.0001362,2]
[418913441,1774534243497,-931.6082402,0.0001362,2]
[418913442,1774534243506,-151.0,0.0001362,2]
[418913443,1774534243516,-151.0,0.0001362,2]
[418913445,1774534243527,-20258.0684652,0.0001362,2]
[418913446,1774534243536,-178.561689,0.0001362,2]
[418913450,1774534243546,-178.561689,0.0001362,2]
[418913452,1774534243556,-178.561689,0.0001362,2]
[418913455,1774534243565,-178.561689,0.0001362,2]
[418913458,1774534243574,-500.0,0.0001362,2]
[418913461,1774534243584,-500.0,0.0001362,2]
[418913463,1774534243593,-500.0,0.0001362,2]
[418913465,1774534243603,-500.0,0.0001362,2]
[418913467,1774534243614,-690.696346,0.0001362,2]
[418913468,1774534243623,-690.696346,0.0001362,2]
[418913470,1774534243633,-690.696346,0.0001362,2]
[418913471,1774534243643,-690.696346,0.0001362,2]
[418913472,1774534243653,-1019.959606,0.0001362,2]
[418913473,1774534243663,-1019.959606,0.0001362,2]
[418913474,1774534243672,-1019.959606,0.0001362,2]
[418913475,1774534243682,-1019.959606,0.0001362,2]
[418913476,1774534243692,-2000.0,0.00013645,2]
[418913477,1774534243702,-200.0,0.00013645,2]
[418913478,1774534243712,-620.39779553,0.00013645,2]
[418913479,1774534243721,-168.01234868,0.00013645,2]
[418913480,1774534243731,-500.0,0.00013645,2]
[418913481,1774534243741,-198.0,0.00013645,3]
[418913482,1774534243750,-158.0,0.00013645,3]
[418913483,1774534243759,-160.0,0.00013645,3]
[418913484,1774534243769,-1000.0,0.00013646,2]
[418913485,1774534243779,-500.0,0.00013698,2]
[418913486,1774534243789,-500.0,0.00013698,2]
[418913487,1774534243798,-500.0,0.00013698,2]
[418913488,1774534243807,-500.0,0.00013698,2]
[418913489,1774534243817,-500.0,0.00013698,2]
[418913490,1774534243826,-500.0,0.00013698,2]
[418913491,1774534243835,-500.0,0.00013698,2]
[418913492,1774534243844,-316.47434679,0.00013698,2]
[418913493,1774534243854,-500.0,0.00013698,2]
[418913494,1774534243863,-500.0,0.00013698,2]
[418913495,1774534243873,-500.0,0.00013698,2]
[418913496,1774534243883,-500.0,0.00013698,2]
[418913497,1774534243892,-500.0,0.00013698,2]
[418913498,1774534243901,-500.0,0.00013698,2]
[418913499,1774534243911,-500.0,0.00013698,2]
[418913500,1774534243920,-500.0,0.00013698,2]
[418913501,1774534243929,-500.0,0.00013698,2]
[418913502,1774534243938,-500.0,0.00013698,2]
[418913503,1774534243947,-500.0,0.00013698,2]
[418913504,1774534243956,-500.0,0.00013698,2]
[418913505,1774534243966,-500.0,0.00013698,2]
[418913506,1774534243976,-500.0,0.00013698,2]
[418913507,1774534243985,-500.0,0.00013698,2]
[418913508,1774534243994,-500.0,0.00013698,2]
[418913509,1774534244004,-250.26330118,0.00013698,2]
[418913510,1774534244012,-500.0,0.00013698,2]
[418913511,1774534244022,-500.0,0.00013698,2]
[418913512,1774534244031,-500.0,0.00013698,2]
[418913513,1774534244040,-500.0,0.00013698,2]
[418913514,1774534244050,-500.0,0.00013698,2]
[418913515,1774534244059,-500.0,0.00013698,2]
[418913516,1774534244068,-500.0,0.00013698,2]
[418913517,1774534244077,-500.0,0.00013698,2]
[418913518,1774534244086,-500.0,0.00013698,2]
[418913519,1774534244095,-500.0,0.00013698,2]
[418913520,1774534244105,-500.0,0.00013698,2]
[418913521,1774534244115,-500.0,0.00013698,2]
[418913522,1774534244125,-500.0,0.00013698,2]
[418913523,1774534244134,-500.0,0.00013698,2]
[418913524,1774534244143,-500.0,0.00013698,2]
[418913525,1774534244153,-220.69817382,0.00013698,2]
[418913526,1774534244162,-500.0,0.00013698,2]
[418913527,1774534244171,-500.0,0.00013698,2]
[418913528,1774534244180,-500.0,0.00013698,2]
[418913529,1774534244189,-500.0,0.00013698,2]
[418913530,1774534244198,-515.80603773,0.00013698,2]
[418913531,1774534244206,-500.0,0.00013698,2]
[418913532,1774534244216,-500.0,0.00013698,2]
[418913533,1774534244225,-500.0,0.00013698,2]
[418913534,1774534244234,-500.0,0.00013698,2]
[418913535,1774534244243,-171.67689472,0.00013698,2]
[418913536,1774534244253,-500.0,0.00013698,2]
[418913537,1774534244262,-500.0,0.00013698,2]
[418913538,1774534244273,-500.0,0.00013698,2]
[418913539,1774534244282,-500.0,0.00013698,2]
[418913540,1774534244291,-500.0,0.00013698,2]
[418913541,1774534244301,-500.0,0.00013698,2]
[418913542,1774534244310,-500.0,0.00013698,2]
[418913543,1774534244319,-500.0,0.00013698,2]
[418913544,1774534244328,-527.29021656,0.00013698,2]
[418913545,1774534244338,-500.0,0.00013698,2]
[418913546,1774534244347,-500.0,0.00013698,2]
[418913547,1774534244356,-500.0,0.00013698,2]
[418913548,1774534244365,-500.0,0.00013698,2]
[418913549,1774534244374,-500.0,0.00013698,2]
[418913550,1774534244383,-500.0,0.00013698,2]
[418913551,1774534244392,-500.0,0.00013698,2]
[418913552,1774534244401,-500.0,0.00013698,2]
[418913553,1774534244411,-500.0,0.00013698,2]
[418913554,1774534244420,-500.0,0.00013698,2]
[418913555,1774534244429,-500.0,0.00013698,2]
[418913556,1774534244439,-500.0,0.00013698,2]
[418913557,1774534244448,-500.0,0.00013698,2]
[418913558,1774534244457,-257.73702656,0.00013698,2]
[418913559,1774534244467,-500.0,0.00013698,2]
[418913560,1774534244476,-500.0,0.00013698,2]
[418913561,1774534244486,-500.0,0.00013698,2]
[418913562,1774534244495,-500.0,0.00013698,2]
[418913563,1774534244505,-500.0,0.00013698,2]
[418913564,1774534244514,-500.0,0.00013698,2]
[418913565,1774534244523,-500.0,0.00013698,2]
[418913566,1774534244533,-500.0,0.00013698,2]
[418913567,1774534244542,-500.0,0.00013698,2]
[418913568,1774534244551,-500.0,0.00013698,2]
[418913569,1774534244560,-500.0,0.00013698,2]
[418913570,1774534244569,-500.0,0.00013698,2]
[418913571,1774534244579,-500.0,0.00013698,2]
[418913572,1774534244588,-500.0,0.00013698,2]
[418913573,1774534244597,-500.0,0.00013698,2]
[418913574,1774534244607,-500.0,0.00013698,2]
[418913575,1774534244617,-500.0,0.00013698,2]
[418913576,1774534244626,-500.0,0.00013698,2]
[418913577,1774534244635,-500.0,0.00013698,2]
[418913578,1774534244644,-604.01853711,0.00013698,2]
[418913579,1774534244653,-500.0,0.00013698,2]
[418913580,1774534244663,-500.0,0.00013698,2]
[418913581,1774534244672,-500.0,0.00013698,2]
[418913582,1774534244681,-500.0,0.00013698,2]
[418913583,1774534244691,-500.0,0.00013698,2]
[418913584,1774534244700,-500.0,0.00013698,2]
[418913585,1774534244709,-500.0,0.00013698,2]
[418913586,1774534244718,-500.0,0.00013698,2]
[418913587,1774534244728,-500.0,0.00013698,2]
[418913588,1774534244737,-500.0,0.00013698,2]
[418913589,1774534244747,-500.0,0.00013698,2]
[418913590,1774534244756,-500.0,0.00013698,2]
[418913591,1774534244765,-500.0,0.00013698,2]
[418913592,1774534244774,-500.0,0.00013698,2]
[418913593,1774534244783,-570.877972,0.00013698,2]
[418913594,1774534244792,-272.38298681,0.00013698,2]
[418913595,1774534244801,-150.67436787,0.00013698,2]
[418913596,1774534244810,-500.0,0.00013698,2]
[418913597,1774534244819,-500.0,0.00013698,2]
[418913598,1774534244828,-500.0,0.00013698,2]
[418913599,1774534244838,-500.0,0.00013698,2]
[418913600,1774534244847,-500.0,0.00013698,2]
[418913601,1774534244856,-500.0,0.00013698,2]
[418913602,1774534244865,-500.0,0.00013698,2]
[418913603,1774534244874,-500.0,0.00013698,2]
[418913604,1774534244883,-500.0,0.00013698,2]
[418913605,1774534244892,-500.0,0.00013698,2]
[418913606,1774534244903,-500.0,0.00013698,2]
[418913607,1774534244912,-500.0,0.00013698,2]
[418913608,1774534244921,-619.28774558,0.00013698,2]
[418913609,1774534244930,-500.0,0.00013698,2]
[418913610,1774534244940,-500.0,0.00013698,2]
[418913611,1774534244949,-500.0,0.00013698,2]
[418913612,1774534244958,-500.0,0.00013698,2]
[418913613,1774534244968,-500.0,0.00013698,2]
[418913614,1774534244977,-500.0,0.00013698,2]
[418913615,1774534244987,-500.0,0.00013698,2]
[418913616,1774534244996,-500.0,0.00013698,2]
[418913617,1774534245006,-500.0,0.00013698,2]
[418913618,1774534245015,-500.0,0.00013698,2]
[418913619,1774534245025,-500.0,0.00013698,2]
[418913620,1774534245035,-500.0,0.00013698,2]
[418913621,1774534245044,-645.76,0.00013698,2]
[418913622,1774534245054,-500.0,0.00013698,2]
[418913623,1774534245063,-500.0,0.00013698,2]
[418913624,1774534245073,-500.0,0.00013698,2]
[418913625,1774534245082,-500.0,0.00013698,2]
[418913626,1774534245091,-616.72336867,0.00013698,2]
[418913627,1774534245100,-502.37596608,0.00013698,2]
[418913628,1774534245109,-500.0,0.00013698,2]
[418913629,1774534245118,-504.25077449,0.00013698,2]
[418913630,1774534245127,-405.4389704,0.00013698,2]
[418913631,1774534245136,-500.0,0.00013698,2]
[418913632,1774534245146,-500.0,0.00013698,2]
[418913633,1774534245157,-500.0,0.00013698,2]
[418913634,1774534245166,-517.37860543,0.00013698,2]
[418913635,1774534245175,-500.0,0.00013698,2]
[418913636,1774534245183,-500.0,0.00013698,2]
[418913637,1774534245192,-500.0,0.00013698,2]
[418913638,1774534245201,-500.0,0.00013698,2]
[418913639,1774534245210,-500.0,0.00013698,2]
[418913640,1774534245219,-500.0,0.00013698,2]
[418913641,1774534245228,-500.0,0.00013698,2]
[418913642,1774534245237,-500.0,0.00013698,2]
[418913643,1774534245246,-500.0,0.00013698,2]
[418913644,1774534245256,-500.0,0.00013698,2]
[418913645,1774534245265,-500.0,0.00013698,2]
[418913646,1774534245275,-500.0,0.00013698,2]
[418913647,1774534245285,-500.0,0.00013698,2]
[418913648,1774534245295,-500.0,0.00013698,2]
[418913649,1774534245312,-500.0,0.00013698,2]
[418913650,1774534245333,-500.0,0.00013698,2]
[418913651,1774534245347,-150.0,0.00013699,2]
[418913652,1774534245356,-150.0,0.00013699,2]
[418913653,1774534245365,-150.0,0.00013699,2]
[418913654,1774534245375,-200.0,0.00013699,2]
[418913655,1774534245384,-785.52,0.00013699,2]
[418913656,1774534245394,-344.55,0.00013699,2]
[418913657,1774534245403,-151.0,0.00013699,2]
[418913658,1774534245413,-716.22,0.00013699,2]
[418913659,1774534245422,-180.066542,0.00013699,2]
[418913660,1774534245432,-180.066542,0.00013699,2]
[418913661,1774534245441,-180.066542,0.00013699,2]
[418913662,1774534245450,-180.066542,0.00013699,2]
[418913663,1774534245459,-500.0,0.00013699,2]
[418913664,1774534245468,-284.56175556,0.00013699,2]
[418913665,1774534245477,-500.0,0.00013699,2]
[418913666,1774534245486,-500.0,0.00013699,2]
[418913667,1774534245496,-500.0,0.00013699,2]
[418913668,1774534245505,-500.0,0.00013699,2]
[418913669,1774534245514,-500.0,0.00013699,2]
[418913670,1774534245525,-502.34122551,0.00013699,2]
[418913671,1774534245534,-500.0,0.00013699,2]
[418913672,1774534245543,-500.0,0.00013699,2]
[418913673,1774534245553,-500.0,0.00013699,2]
[418913674,1774534245562,-500.0,0.00013699,2]
[418913675,1774534245571,-500.0,0.00013699,2]
[418913676,1774534245582,-500.0,0.00013699,2]
[418913677,1774534245591,-500.0,0.00013699,2]
[418913678,1774534245600,-500.0,0.00013699,2]
[418913679,1774534245609,-500.0,0.00013699,2]
[418913680,1774534245618,-188.77723354,0.00013699,2]
[418913681,1774534245628,-500.0,0.00013699,2]
[418913682,1774534245638,-500.0,0.00013699,2]
[418913683,1774534245649,-640.4578624,0.00013699,2]
[418913684,1774534245659,-500.0,0.00013699,2]
[418913685,1774534245668,-500.0,0.00013699,2]
[418913686,1774534245677,-500.0,0.00013699,2]
[418913687,1774534245687,-500.0,0.00013699,2]
[418913688,1774534245696,-536.70085087,0.00013699,2]
[418913689,1774534245706,-500.0,0.00013699,2]
[418913690,1774534245716,-500.0,0.00013699,2]
[418913691,1774534245726,-166.32485968,0.00013699,2]
[418913692,1774534245735,-500.0,0.00013699,2]
[418913693,1774534245745,-500.0,0.00013699,2]
[418913694,1774534245755,-500.17475922,0.00013699,2]
[418913695,1774534245764,-500.0,0.00013699,2]
[418913696,1774534245774,-500.0,0.00013699,2]
[418913697,1774534245783,-500.0,0.00013699,2]
[418913698,1774534245792,-548.08973454,0.00013699,2]
[418913699,1774534245802,-500.0,0.00013699,2]
[418913700,1774534245811,-361.99,0.00013699,2]
[418913701,1774534245820,-330.65480685,0.00013699,2]
[418913702,1774534245830,-496.39,0.000137,2]
[418913703,1774534245840,-2337.78,0.000137,2]
[418913704,1774534245849,-11908.54,0.000137,2]
[418913705,1774534245859,-1903.86,0.000137,2]
[418913706,1774534245869,-1839.58,0.000137,2]
[418913707,1774534245878,-1895.4,0.000137,2]
[418913708,1774534245888,-500.0,0.00013743,2]
[418913709,1774534245897,-500.0,0.00013755,2]
[418913710,1774534245906,-1322.82718115,0.00013781,2]
[418913711,1774534245915,-200.0,0.00013781,2]
[418913712,1774534245925,-203.7739763,0.00013789,7]
[418913713,1774534245934,-376.86536654,0.00013812,2]
[418913714,1774534245945,-1693.96,0.00013822,2]
[418913715,1774534245954,-1693.95,0.00013822,2]
[418913716,1774534245963,-902.4,0.00013822,2]
[418913717,1774534245972,-200.0,0.00013919,2]
[418913718,1774534245982,-7834.51153493,0.0001392,2]
[418913719,1774534245992,-157.03,0.00013946,2]
[418913720,1774534246001,-160.0,0.00013962,7]
[418913721,1774534246010,-151.0,0.0001397,2]
[418913722,1774534246020,-151.0,0.0001397,2]
[418913723,1774534246030,-151.0,0.0001397,2]
[418913724,1774534246039,-153.137935,0.0001397,2]
[418913725,1774534246048,-150.0,0.00013973,2]
[418913726,1774534246058,-10779.79299008,0.00014,5]
[418913727,1774534246067,-503.0,0.00014,2]
[418913728,1774534246076,-200.0,0.00014058,2]
[418913730,1774534246085,-500.0,0.00014118,2]
[418913732,1774534246095,-500.0,0.00014118,2]
[418913734,1774534246104,-169816.34,0.00014119,2]
[418913736,1774534246113,-151.25612,0.00014119,2]
[418913738,1774534246123,-250.0,0.00014175,2]
[418913740,1774534246131,-200.0,0.00014199,2]
[418913742,1774534246143,-150.0,0.00014247,2]
[418913744,1774534246152,-566.29937097,0.00014247,2]
[418913746,1774534246162,-1000.0,0.00014247,2]
[418913748,1774534246172,-1000.0,0.00014247,2]
[418913750,1774534246181,-1000.0,0.00014247,2]
[418913752,1774534246190,-1000.0,0.00014247,2]
[418913754,1774534246199,-734.15208143,0.00014247,2]
[418913756,1774534246208,-548.13868249,0.00014247,2]
[418913758,1774534246217,-918.56315304,0.00014247,2]
[418913760,1774534246226,-507.33813259,0.00014247,2]
[418913762,1774534246236,-500.0,0.00014247,2]
[418913764,1774534246245,-1000.0,0.00014247,2]
[418913766,1774534246254,-1000.0,0.00014247,2]
[418913768,1774534246263,-1000.0,0.00014247,2]
[418913770,1774534246271,-933.52493421,0.00014247,2]
[418913772,1774534246281,-1000.0,0.00014247,2]
[418913774,1774534246290,-1000.0,0.00014247,2]
[418913775,1774534246300,-1124.68310362,0.00014247,2]
[418913776,1774534246310,-1000.0,0.00014247,2]
[418913778,1774534246318,-1000.0,0.00014247,2]
[418913780,1774534246328,-1000.0,0.00014247,2]
[418913781,1774534246337,-1000.0,0.00014247,2]
[418913782,1774534246346,-1000.0,0.00014247,2]
[418913783,1774534246356,-1142.95051785,0.00014247,2]
[418913784,1774534246365,-1000.0,0.00014247,2]
[418913785,1774534246374,-1000.0,0.00014247,2]
[418913786,1774534246383,-500.77630236,0.00014247,2]
[418913787,1774534246392,-500.75630321,0.00014247,2]
[418913788,1774534246402,-1000.92226367,0.00014247,2]
[418913789,1774534246411,-500.85155912,0.00014247,2]
[418913790,1774534246420,-500.0,0.00014366,2]
[418913791,1774534246429,-209.91479855,0.00014367,2]
[418913792,1774534246438,-344.55,0.00014384,2]
[418913793,1774534246449,-239.02060224,0.00014392,2]
[418913794,1774534246458,-239.02060224,0.00014393,2]
[418913795,1774534246468,-736.0,0.00014442,2]
[418913796,1774534246478,-7834.51153493,0.0001458,2]
[418913797,1774534246487,-259.4033,0.000146,2]
[418913798,1774534246497,-4609.0,0.0001464,2]
[418913799,1774534246506,-1500.0,0.00014795,2]
[418913800,1774534246515,-1585.20383967,0.00014795,2]
[418913801,1774534246524,-1500.0,0.00014795,2]
[418913802,1774534246534,-501.06211491,0.00014795,2]
[418913803,1774534246543,-1500.0,0.00014795,2]
[418913804,1774534246553,-1500.0,0.00014795,2]
[418913805,1774534246562,-191.78949259,0.00014795,2]
[418913806,1774534246572,-1500.0,0.00014795,2]
[418913807,1774534246581,-1500.0,0.00014795,2]
[418913808,1774534246590,-1006.03072976,0.00014795,2]
[418913809,1774534246600,-1500.0,0.00014795,2]
[418913810,1774534246610,-1076.93292255,0.00014795,2]
[418913811,1774534246620,-500.0,0.00014826,2]
[418913812,1774534246629,-500.0,0.00014826,2]
[418913813,1774534246638,-500.0,0.00014826,2]
[418913814,1774534246648,-394.37695468,0.00014826,2]
[418913815,1774534246658,-500.0,0.00014826,2]
[418913816,1774534246667,-500.0,0.00014826,2]
[418913817,1774534246861,-500.0,0.00014826,2]
[418913818,1774534246871,-500.0,0.00014826,2]
[418913819,1774534246881,-500.0,0.00014826,2]
[418913820,1774534246890,-500.0,0.00014826,2]
[418913821,1774534246900,-500.0,0.00014826,2]
[418913822,1774534246909,-500.0,0.00014826,2]
[418913823,1774534246919,-500.0,0.00014826,2]